fUSD/lending_fUSD_20260605
["ID","MTS","AMOUNT","RATE_DAILY","PERIOD"]
[424128241,1780605068000,-501.982826,0.00037808,11]
[424128246,1780605068000,-171.709045,0.00037808,11]
[424128271,1780605068000,-171.709045,0.00037808,11]
[424128245,1780605068000,-501.982826,0.00037808,11]
[424128247,1780605068000,-501.982826,0.00037808,11]
[424128215,1780605068000,-501.982826,0.00037808,11]
[424128221,1780605068000,-151.699155,0.00037808,11]
[424128218,1780605068000,-500.0,0.00037808,11]
[424128219,1780605068000,-151.699155,0.00037808,11]
[424128214,1780605068000,-171.709045,0.00037808,11]
[424128217,1780605068000,-171.709045,0.00037808,11]
[424128220,1780605068000,-171.709045,0.00037808,11]
[424128223,1780605068000,-171.709045,0.00037808,11]
[424128233,1780605068000,-171.709045,0.00037808,11]
[424128234,1780605068000,-500.0,0.00037808,11]
[424128235,1780605068000,-501.982826,0.00037808,11]
[424128222,1780605068000,-501.982826,0.00037808,11]
[424128216,1780605068000,-151.699155,0.00037808,11]
[424128225,1780605068000,-501.982826,0.00037808,11]
[424128237,1780605068000,-171.709045,0.00037808,11]
[424128239,1780605068000,-151.699155,0.00037808,11]
[424128240,1780605068000,-171.709045,0.00037808,11]
[424128238,1780605068000,-501.982826,0.00037808,11]
[424128224,1780605068000,-151.699155,0.00037808,11]
[424128226,1780605068000,-171.709045,0.00037808,11]
[424128236,1780605068000,-151.699155,0.00037808,11]
[424128230,1780605068000,-171.709045,0.00037808,11]
[424128231,1780605068000,-501.982826,0.00037808,11]
[424128232,1780605068000,-151.699155,0.00037808,11]
[424128228,1780605068000,-501.982826,0.00037808,11]
[424128227,1780605068000,-151.699155,0.00037808,11]
[424128229,1780605068000,-151.699155,0.00037808,11]
[424128321,1780605069000,-171.709045,0.00037808,11]
[424128311,1780605069000,-171.709045,0.00037808,11]
[424128310,1780605069000,-171.709045,0.00037808,11]
[424128304,1780605069000,-171.709045,0.00037808,11]
[424128305,1780605069000,-171.709045,0.00037808,11]
[424128300,1780605069000,-501.982826,0.00037808,11]
[424128302,1780605069000,-171.709045,0.00037808,11]
[424128307,1780605069000,-171.709045,0.00037808,11]
[424128297,1780605069000,-501.982826,0.00037808,11]
[424128299,1780605069000,-469.82237469,0.00037808,11]
[424128301,1780605069000,-171.709045,0.00037808,11]
[424128322,1780605069000,-171.709045,0.00037808,11]
[424128320,1780605069000,-175.18555676,0.00037808,11]
[424128315,1780605069000,-171.709045,0.00037808,11]
[424128313,1780605069000,-500.0,0.00037808,11]
[424128317,1780605069000,-231.3865314,0.00037808,11]
[424128318,1780605069000,-171.709045,0.00037808,11]
[424128312,1780605069000,-171.709045,0.00037808,11]
[424128314,1780605069000,-171.709045,0.00037808,11]
[424128316,1780605069000,-171.709045,0.00037808,11]
[424128324,1780605069000,-500.0,0.00037808,11]
[424128334,1780605069000,-171.709045,0.00037808,11]
[424128327,1780605069000,-171.709045,0.00037808,11]
[424128329,1780605069000,-171.709045,0.00037808,11]
[424128308,1780605069000,-171.709045,0.00037808,11]
[424128319,1780605069000,-171.709045,0.00037808,11]
[424128296,1780605069000,-500.0,0.00037808,11]
[424128286,1780605069000,-171.709045,0.00037808,11]
[424128306,1780605069000,-171.709045,0.00037808,11]
[424128332,1780605069000,-171.709045,0.00037808,11]
[424128273,1780605069000,-501.982826,0.00037808,11]
[424128279,1780605069000,-500.0,0.00037808,11]
[424128278,1780605069000,-501.982826,0.00037808,11]
[424128275,1780605069000,-500.0,0.00037808,11]
[424128272,1780605069000,-501.982826,0.00037808,11]
[424128283,1780605069000,-171.709045,0.00037808,11]
[424128280,1780605069000,-171.709045,0.00037808,11]
[424128276,1780605069000,-501.982826,0.00037808,11]
[424128274,1780605069000,-171.709045,0.00037808,11]
[424128282,1780605069000,-501.982826,0.00037808,11]
[424128277,1780605069000,-171.709045,0.00037808,11]
[424128281,1780605069000,-500.0,0.00037808,11]
[424128284,1780605069000,-501.982826,0.00037808,11]
[424128290,1780605069000,-171.709045,0.00037808,11]
[424128295,1780605069000,-171.709045,0.00037808,11]
[424128293,1780605069000,-171.709045,0.00037808,11]
[424128288,1780605069000,-171.709045,0.00037808,11]
[424128294,1780605069000,-501.982826,0.00037808,11]
[424128287,1780605069000,-501.982826,0.00037808,11]
[424128285,1780605069000,-500.0,0.00037808,11]
[424128291,1780605069000,-501.982826,0.00037808,11]
[424128292,1780605069000,-566.99,0.00037808,11]
[424128289,1780605069000,-501.982826,0.00037808,11]
[424128309,1780605069000,-171.709045,0.00037808,11]
[424128298,1780605069000,-171.709045,0.00037808,11]
[424128333,1780605069000,-171.709045,0.00037808,11]
[424128303,1780605069000,-171.709045,0.00037808,11]
[424128330,1780605069000,-500.0,0.00037808,11]
[424128359,1780605069000,-171.709045,0.00037808,11]
[424128357,1780605069000,-1186.4,0.00037808,11]
[424128362,1780605069000,-500.0,0.00037808,11]
[424128373,1780605069000,-500.0,0.00037808,11]
[424128363,1780605069000,-171.709045,0.00037808,11]
[424128368,1780605069000,-500.0,0.00037808,11]
[424128372,1780605069000,-500.0,0.00037808,11]
[424128366,1780605069000,-171.709045,0.00037808,11]
[424128371,1780605069000,-500.0,0.00037808,11]
[424128370,1780605069000,-513.27,0.00037808,11]
[424128365,1780605069000,-171.709045,0.00037808,11]
[424128367,1780605069000,-2774.5,0.00037808,11]
[424128360,1780605069000,-3658.87,0.00037808,11]
[424128369,1780605069000,-500.0,0.00037808,11]
[424128376,1780605069000,-181.49498021,0.00037808,11]
[424128377,1780605069000,-510.67854122,0.00037808,11]
[424128385,1780605069000,-500.0,0.00037808,11]
[424128374,1780605069000,-500.0,0.00037808,11]
[424128375,1780605069000,-500.0,0.00037808,11]
[424128378,1780605069000,-500.0,0.00037808,11]
[424128386,1780605069000,-500.0,0.00037808,11]
[424128380,1780605069000,-500.0,0.00037808,11]
[424128379,1780605069000,-500.0,0.00037808,11]
[424128381,1780605069000,-500.0,0.00037808,11]
[424128384,1780605069000,-500.0,0.00037808,11]
[424128328,1780605069000,-171.709045,0.00037808,11]
[424128364,1780605069000,-500.0,0.00037808,11]
[424128355,1780605069000,-171.709045,0.00037808,11]
[424128383,1780605069000,-500.0,0.00037808,11]
[424128356,1780605069000,-500.0,0.00037808,11]
[424128326,1780605069000,-171.709045,0.00037808,11]
[424128325,1780605069000,-171.709045,0.00037808,11]
[424128323,1780605069000,-500.0,0.00037808,11]
[424128331,1780605069000,-171.709045,0.00037808,11]
[424128338,1780605069000,-171.709045,0.00037808,11]
[424128336,1780605069000,-171.709045,0.00037808,11]
[424128337,1780605069000,-171.709045,0.00037808,11]
[424128358,1780605069000,-171.709045,0.00037808,11]
[424128339,1780605069000,-171.709045,0.00037808,11]
[424128340,1780605069000,-171.709045,0.00037808,11]
[424128335,1780605069000,-500.0,0.00037808,11]
[424128342,1780605069000,-171.709045,0.00037808,11]
[424128344,1780605069000,-171.709045,0.00037808,11]
[424128341,1780605069000,-171.709045,0.00037808,11]
[424128348,1780605069000,-171.709045,0.00037808,11]
[424128352,1780605069000,-171.709045,0.00037808,11]
[424128343,1780605069000,-171.709045,0.00037808,11]
[424128354,1780605069000,-171.709045,0.00037808,11]
[424128350,1780605069000,-171.709045,0.00037808,11]
[424128382,1780605069000,-500.0,0.00037808,11]
[424128353,1780605069000,-171.709045,0.00037808,11]
[424128361,1780605069000,-171.709045,0.00037808,11]
[424128349,1780605069000,-171.709045,0.00037808,11]
[424128346,1780605069000,-171.709045,0.00037808,11]
[424128345,1780605069000,-171.709045,0.00037808,11]
[424128347,1780605069000,-171.709045,0.00037808,11]
[424128351,1780605069000,-500.0,0.00037808,11]
[424128424,1780605070000,-500.0,0.00037808,11]
[424128416,1780605070000,-500.0,0.00037808,11]
[424128422,1780605070000,-500.0,0.00037808,11]
[424128423,1780605070000,-1155.72,0.00037808,11]
[424128419,1780605070000,-500.0,0.00037808,11]
[424128420,1780605070000,-500.0,0.00037808,11]
[424128421,1780605070000,-500.0,0.00037808,11]
[424128425,1780605070000,-500.0,0.00037808,11]
[424128414,1780605070000,-151.0,0.00037808,30]
[424128415,1780605070000,-500.0,0.00037808,11]
[424128427,1780605070000,-878.66,0.00037808,11]
[424128447,1780605070000,-542.01,0.00037808,11]
[424128428,1780605070000,-500.0,0.00037808,11]
[424128430,1780605070000,-500.0,0.00037808,11]
[424128429,1780605070000,-500.0,0.00037808,11]
[424128426,1780605070000,-500.0,0.00037808,11]
[424128434,1780605070000,-500.0,0.00037808,11]
[424128432,1780605070000,-500.0,0.00037808,11]
[424128433,1780605070000,-500.0,0.00037808,11]
[424128431,1780605070000,-500.0,0.00037808,11]
[424128436,1780605070000,-500.0,0.00037808,11]
[424128435,1780605070000,-500.0,0.00037808,11]
[424128439,1780605070000,-3043.72,0.00037808,11]
[424128418,1780605070000,-500.0,0.00037808,11]
[424128437,1780605070000,-500.0,0.00037808,11]
[424128417,1780605070000,-500.0,0.00037808,11]
[424128410,1780605070000,-2772.47,0.00037808,11]
[424128413,1780605070000,-500.0,0.00037808,11]
[424128438,1780605070000,-599.98223345,0.00037808,11]
[424128387,1780605070000,-500.0,0.00037808,11]
[424128390,1780605070000,-151.0,0.00037808,30]
[424128389,1780605070000,-500.0,0.00037808,11]
[424128395,1780605070000,-500.0,0.00037808,11]
[424128388,1780605070000,-500.0,0.00037808,11]
[424128391,1780605070000,-545.79,0.00037808,11]
[424128392,1780605070000,-3800.67,0.00037808,11]
[424128398,1780605070000,-500.0,0.00037808,11]
[424128393,1780605070000,-151.0,0.00037808,30]
[424128397,1780605070000,-1717.090526,0.00037808,11]
[424128396,1780605070000,-500.0,0.00037808,11]
[424128394,1780605070000,-3948.71,0.00037808,11]
[424128406,1780605070000,-500.0,0.00037808,11]
[424128403,1780605070000,-500.0,0.00037808,11]
[424128404,1780605070000,-500.0,0.00037808,11]
[424128400,1780605070000,-586.28,0.00037808,11]
[424128402,1780605070000,-4080.99,0.00037808,11]
[424128411,1780605070000,-3410.77,0.00037808,11]
[424128401,1780605070000,-750.61,0.00037808,7]
[424128409,1780605070000,-500.0,0.00037808,11]
[424128405,1780605070000,-500.0,0.00037808,11]
[424128408,1780605070000,-500.0,0.00037808,11]
[424128399,1780605070000,-995.33,0.00037808,10]
[424128407,1780605070000,-545.86,0.00037808,11]
[424128412,1780605070000,-926.27,0.00037808,11]
[424128448,1780605070000,-500.0,0.00037808,11]
[424128442,1780605070000,-500.0,0.00037808,11]
[424128450,1780605070000,-639.13,0.00037808,11]
[424128473,1780605070000,-3295.91,0.00037808,11]
[424128474,1780605070000,-500.0,0.00037808,11]
[424128479,1780605070000,-500.0,0.00037808,11]
[424128480,1780605070000,-151.0,0.00037808,30]
[424128478,1780605070000,-500.0,0.00037808,11]
[424128481,1780605070000,-500.0,0.00037808,11]
[424128475,1780605070000,-2571.81,0.00037808,11]
[424128482,1780605070000,-151.0,0.00037808,30]
[424128477,1780605070000,-500.0,0.00037808,11]
[424128476,1780605070000,-790.28,0.00037808,11]
[424128483,1780605070000,-500.0,0.00037808,11]
[424128484,1780605070000,-500.0,0.00037808,11]
[424128485,1780605070000,-696.01,0.00037808,11]
[424128490,1780605070000,-500.0,0.00037808,11]
[424128486,1780605070000,-501.58,0.00037808,11]
[424128487,1780605070000,-3281.1,0.00037808,11]
[424128491,1780605070000,-500.0,0.00037808,11]
[424128488,1780605070000,-1231.45,0.00037808,11]
[424128451,1780605070000,-3576.93,0.00037808,11]
[424128492,1780605070000,-500.0,0.00037808,11]
[424128497,1780605070000,-597.34,0.00037808,11]
[424128493,1780605070000,-500.0,0.00037808,11]
[424128495,1780605070000,-500.0,0.00037808,11]
[424128494,1780605070000,-632.6,0.00037808,11]
[424128496,1780605070000,-500.0,0.00037808,11]
[424128472,1780605070000,-500.0,0.00037808,11]
[424128470,1780605070000,-2952.35,0.00037808,11]
[424128489,1780605070000,-500.0,0.00037808,11]
[424128467,1780605070000,-1409.17,0.00037808,11]
[424128471,1780605070000,-3897.01,0.00037808,11]
[424128449,1780605070000,-776.36,0.00037808,11]
[424128446,1780605070000,-500.0,0.00037808,11]
[424128444,1780605070000,-541.06,0.00037808,11]
[424128441,1780605070000,-500.0,0.00037808,11]
[424128440,1780605070000,-500.0,0.00037808,11]
[424128445,1780605070000,-500.0,0.00037808,11]
[424128453,1780605070000,-500.0,0.00037808,11]
[424128452,1780605070000,-424.54503388,0.00037808,11]
[424128454,1780605070000,-500.0,0.00037808,11]
[424128463,1780605070000,-535.7,0.00037808,11]
[424128455,1780605070000,-370.72860659,0.00037808,11]
[424128443,1780605070000,-661.28,0.00037808,11]
[424128456,1780605070000,-500.0,0.00037808,11]
[424128457,1780605070000,-621.19,0.00037808,11]
[424128466,1780605070000,-500.0,0.00037808,11]
[424128468,1780605070000,-3578.37,0.00037808,11]
[424128464,1780605070000,-2892.33,0.00037808,11]
[424128465,1780605070000,-500.0,0.00037808,11]
[424128459,1780605070000,-500.0,0.00037808,11]
[424128461,1780605070000,-500.0,0.00037808,11]
[424128462,1780605070000,-500.0,0.00037808,11]
[424128460,1780605070000,-4506.51,0.00037808,11]
[424128458,1780605070000,-500.0,0.00037808,11]
[424128469,1780605070000,-500.0,0.00037808,11]
[424128518,1780605071000,-2267.8,0.00037808,11]
[424128522,1780605071000,-676.23,0.00037808,11]
[424128528,1780605071000,-500.0,0.00037808,11]
[424128524,1780605071000,-573.0,0.00037808,11]
[424128523,1780605071000,-2112.03,0.00037808,11]
[424128529,1780605071000,-2802.1,0.00037808,11]
[424128525,1780605071000,-593.81,0.00037808,11]
[424128530,1780605071000,-511.28,0.00037808,11]
[424128532,1780605071000,-4100.24,0.00037808,11]
[424128526,1780605071000,-500.75781891,0.00037808,11]
[424128533,1780605071000,-519.81419984,0.00037808,11]
[424128531,1780605071000,-2945.38,0.00037808,11]
[424128534,1780605071000,-974.44,0.00037808,11]
[424128536,1780605071000,-500.0,0.00037808,11]
[424128535,1780605071000,-500.0,0.00037808,11]
[424128520,1780605071000,-500.0,0.00037808,11]
[424128539,1780605071000,-500.0,0.00037808,11]
[424128527,1780605071000,-500.0,0.00037808,11]
[424128521,1780605071000,-478.57281067,0.00037808,11]
[424128505,1780605071000,-500.0,0.00037808,11]
[424128516,1780605071000,-500.0,0.00037808,11]
[424128537,1780605071000,-500.0,0.00037808,11]
[424128498,1780605071000,-500.0,0.00037808,11]
[424128499,1780605071000,-500.0,0.00037808,11]
[424128501,1780605071000,-500.0,0.00037808,11]
[424128502,1780605071000,-3100.56,0.00037808,11]
[424128500,1780605071000,-825.24,0.00037808,11]
[424128503,1780605071000,-3838.41,0.00037808,11]
[424128506,1780605071000,-500.0,0.00037808,11]
[424128507,1780605071000,-500.0,0.00037808,11]
[424128504,1780605071000,-500.0,0.00037808,11]
[424128511,1780605071000,-3247.22,0.00037808,11]
[424128508,1780605071000,-623.43328011,0.00037808,11]
[424128509,1780605071000,-500.0,0.00037808,11]
[424128515,1780605071000,-500.0,0.00037808,11]
[424128514,1780605071000,-500.0,0.00037808,11]
[424128512,1780605071000,-500.0,0.00037808,11]
[424128513,1780605071000,-848.37,0.00037808,11]
[424128510,1780605071000,-500.0,0.00037808,11]
[424128517,1780605071000,-500.0,0.00037808,11]
[424128519,1780605071000,-500.0,0.00037808,11]
[424128538,1780605071000,-500.0,0.00037808,11]
[424128543,1780605071000,-638.52,0.00037808,11]
[424128540,1780605071000,-500.0,0.00037808,11]
[424128566,1780605071000,-12870.4,0.00037808,11]
[424128575,1780605071000,-5281.21,0.00037808,11]
[424128568,1780605071000,-5845.95,0.00037808,11]
[424128569,1780605071000,-3552.5,0.00037808,11]
[424128565,1780605071000,-371.08891215,0.00037808,11]
[424128567,1780605071000,-500.0,0.00037808,11]
[424128573,1780605071000,-500.0,0.00037808,11]
[424128572,1780605071000,-500.0,0.00037808,11]
[424128562,1780605071000,-4065.62,0.00037808,11]
[424128570,1780605071000,-3770.98,0.00037808,11]
[424128574,1780605071000,-3736.13,0.00037808,11]
[424128582,1780605071000,-500.0,0.00037808,11]
[424128577,1780605071000,-3142.83,0.00037808,11]
[424128578,1780605071000,-2998.09,0.00037808,11]
[424128576,1780605071000,-3863.44,0.00037808,11]
[424128580,1780605071000,-500.0,0.00037808,11]
[424128579,1780605071000,-500.0,0.00037808,11]
[424128541,1780605071000,-4743.33,0.00037808,11]
[424128571,1780605071000,-500.0,0.00037808,11]
[424128561,1780605071000,-195.21546499,0.00037808,11]
[424128581,1780605071000,-500.0,0.00037808,11]
[424128559,1780605071000,-500.0,0.00037808,11]
[424128560,1780605071000,-648.32,0.00037808,11]
[424128544,1780605071000,-264.03300434,0.00037808,11]
[424128545,1780605071000,-500.0,0.00037808,11]
[424128546,1780605071000,-916.33,0.00037808,11]
[424128549,1780605071000,-500.0,0.00037808,11]
[424128550,1780605071000,-896.0,0.00037808,11]
[424128552,1780605071000,-959.65,0.00037808,11]
[424128548,1780605071000,-851.58,0.00037808,11]
[424128553,1780605071000,-4618.34,0.00037808,11]
[424128551,1780605071000,-500.0,0.00037808,11]
[424128558,1780605071000,-8819.12,0.00037808,11]
[424128547,1780605071000,-500.0,0.00037808,11]
[424128556,1780605071000,-3333.17,0.00037808,11]
[424128557,1780605071000,-1586.97,0.00037808,11]
[424128542,1780605071000,-500.0,0.00037808,11]
[424128564,1780605071000,-500.0,0.00037808,11]
[424128554,1780605071000,-500.0,0.00037808,11]
[424128555,1780605071000,-549.95,0.00037808,11]
[424128563,1780605071000,-705.63,0.00037808,11]
[424128602,1780605072000,-500.0,0.00037808,11]
[424128605,1780605072000,-2310.7,0.00037808,11]
[424128609,1780605072000,-500.0,0.00037808,11]
[424128608,1780605072000,-6109.35,0.00037808,11]
[424128610,1780605072000,-500.0,0.00037808,11]
[424128607,1780605072000,-500.0,0.00037808,11]
[424128606,1780605072000,-500.0,0.00037808,11]
[424128612,1780605072000,-735.31,0.00037808,11]
[424128613,1780605072000,-500.0,0.00037808,11]
[424128615,1780605072000,-500.0,0.00037808,11]
[424128621,1780605072000,-500.0,0.00037808,11]
[424128616,1780605072000,-500.0,0.00037808,11]
[424128622,1780605072000,-3421.72,0.00037808,11]
[424128601,1780605072000,-678.62,0.00037808,11]
[424128617,1780605072000,-5331.37,0.00037808,11]
[424128611,1780605072000,-500.0,0.00037808,11]
[424128614,1780605072000,-500.0,0.00037808,11]
[424128588,1780605072000,-500.0,0.00037808,11]
[424128603,1780605072000,-16329.15,0.00037808,11]
[424128618,1780605072000,-500.0,0.00037808,11]
[424128583,1780605072000,-500.0,0.00037808,11]
[424128584,1780605072000,-1946.41,0.00037808,11]
[424128585,1780605072000,-500.0,0.00037808,11]
[424128587,1780605072000,-500.0,0.00037808,11]
[424128594,1780605072000,-500.0,0.00037808,11]
[424128595,1780605072000,-500.0,0.00037808,11]
[424128591,1780605072000,-500.0,0.00037808,11]
[424128592,1780605072000,-500.0,0.00037808,11]
[424128593,1780605072000,-627.84,0.00037808,11]
[424128586,1780605072000,-1738.5,0.00037808,11]
[424128590,1780605072000,-500.0,0.00037808,11]
[424128589,1780605072000,-500.0,0.00037808,11]
[424128596,1780605072000,-3497.51,0.00037808,11]
[424128599,1780605072000,-48578.89,0.00037808,11]
[424128598,1780605072000,-500.0,0.00037808,11]
[424128604,1780605072000,-500.0,0.00037808,11]
[424128597,1780605072000,-500.0,0.00037808,11]
[424128623,1780605072000,-793.97,0.00037808,11]
[424128600,1780605072000,-1732.11,0.00037808,11]
[424128619,1780605072000,-2950.09,0.00037808,11]
[424128646,1780605072000,-500.0,0.00037808,2]
[424128656,1780605072000,-500.0,0.00037808,11]
[424128645,1780605072000,-500.0,0.00037808,11]
[424128647,1780605072000,-500.0,0.00037808,11]
[424128653,1780605072000,-1604.19,0.00037808,11]
[424128652,1780605072000,-500.0,0.00037808,11]
[424128649,1780605072000,-11528.99,0.00037808,11]
[424128648,1780605072000,-1297.05,0.00037808,11]
[424128620,1780605072000,-500.0,0.00037808,11]
[424128650,1780605072000,-500.0,0.00037808,11]
[424128655,1780605072000,-1581.21,0.00037808,11]
[424128654,1780605072000,-500.0,0.00037808,11]
[424128658,1780605072000,-500.0,0.00037808,11]
[424128657,1780605072000,-500.0,0.00037808,11]
[424128659,1780605072000,-4273.71,0.00037808,11]
[424128661,1780605072000,-695.03523982,0.00037808,11]
[424128660,1780605072000,-500.0,0.00037808,11]
[424128641,1780605072000,-2309.83,0.00037808,11]
[424128642,1780605072000,-500.0,0.00037808,11]
[424128651,1780605072000,-500.0,0.00037808,11]
[424128644,1780605072000,-500.0,0.00037808,11]
[424128624,1780605072000,-682.94,0.00037808,11]
[424128626,1780605072000,-500.0,0.00037808,11]
[424128627,1780605072000,-21785.52928963,0.00037808,11]
[424128632,1780605072000,-500.0,0.00037808,11]
[424128630,1780605072000,-21372.30387414,0.00037808,11]
[424128629,1780605072000,-380.90683623,0.00037808,11]
[424128628,1780605072000,-314.55,0.00037808,11]
[424128625,1780605072000,-4227.65,0.00037808,11]
[424128631,1780605072000,-500.0,0.00037808,11]
[424128634,1780605072000,-500.0,0.00037808,11]
[424128635,1780605072000,-4685.9,0.00037808,11]
[424128636,1780605072000,-9363.64,0.00037808,11]
[424128638,1780605072000,-500.0,0.00037808,11]
[424128639,1780605072000,-500.0,0.00037808,2]
[424128640,1780605072000,-2739.7,0.00037808,11]
[424128637,1780605072000,-500.0,0.00037808,11]
[424128633,1780605072000,-500.0,0.00037808,11]
[424128643,1780605072000,-236.83378459,0.00037808,11]
[424128663,1780605073000,152.0,0.00029594,120]
[424128662,1780605073000,152.0,0.00029549,120]
[424128664,1780605078000,1000.0,0.00028656,120]
[424128665,1780605110000,-330.29385908,0.00013811,2]
[424128666,1780605114000,244.21595233,0.00010578,2]
[424128668,1780605164000,-500.0,0.00013858,2]
[424128669,1780605191000,2635.86,0.00029365,120]
[424128670,1780605218000,-500.0,0.00013858,2]
[424128671,1780605271000,-500.0,0.00013858,2]
[424128672,1780605324000,-500.0,0.00013858,2]
[424128673,1780605350000,152.0,0.00029547,120]
[424128674,1780605350000,152.0,0.00029547,120]
[424128676,1780605378000,-169.84659055,0.00013858,2]
[424128679,1780605431000,-1119.30659252,0.00013404,2]
[424128680,1780605451000,-439.67858554,0.00013858,2]
[424128683,1780605452000,-63.91926428,0.00013858,2]
[424128681,1780605452000,-60.32141446,0.00013858,2]
[424128682,1780605452000,-172.57858554,0.00013858,2]
[424128684,1780605485000,-250.0,0.00013867,2]
[424128685,1780605493000,150.0,0.0001596,120]
[424128686,1780605500000,111.3477749,0.00013858,2]
[424128688,1780605500000,138.27447503,0.00013858,2]
[424128687,1780605500000,250.37775007,0.00013858,2]
[424128689,1780605538000,-500.0,0.00013867,2]
[424128691,1780605540000,250.0,0.00013858,2]
[424128692,1780605540000,182.85100803,0.00013858,2]
[424128690,1780605540000,67.14899197,0.00013858,2]
[424128696,1780605548000,64.4485996,0.00013858,2]
[424128693,1780605548000,117.14899197,0.00013858,2]
[424128695,1780605548000,156.40240843,0.00013858,2]
[424128694,1780605548000,162.0,0.00013858,2]
[424128699,1780605559000,3.67036007,0.00013858,2]
[424128698,1780605559000,161.78020727,0.00013858,2]
[424128697,1780605559000,334.54943266,0.00013858,2]
[424128700,1780605592000,-160.0,0.00013913,2]
[424128701,1780605643000,152.73313823,0.00013858,2]
[424128702,1780605647000,152.0,0.00029547,120]
[424128703,1780605647000,152.0,0.00029588,120]
[424128704,1780605827000,500.0,0.00013854,3]
[424128706,1780605965000,152.0,0.00029358,120]
[424128707,1780605966000,152.0,0.00029358,120]
[424128708,1780605967000,152.0,0.0002939,120]
[424128709,1780605968000,152.0,0.00029422,120]
[424128710,1780606007000,-168.38,0.00011069,2]
[424128711,1780606007000,-250.0,0.00012176,2]
[424128712,1780606007000,-252.76531034,0.00013589,2]
[424128714,1780606007000,-500.0,0.00013589,2]
[424128715,1780606007000,-500.0,0.00013589,2]
[424128713,1780606007000,-500.0,0.00013589,2]
[424128717,1780606007000,-500.0,0.00013589,2]
[424128718,1780606007000,-500.0,0.00013589,2]
[424128720,1780606007000,-500.0,0.00013589,2]
[424128719,1780606007000,-500.0,0.00013589,2]
[424128721,1780606007000,-500.0,0.00013589,2]
[424128722,1780606007000,-442.47755092,0.00013589,2]
[424128716,1780606007000,-500.0,0.00013589,2]
[424128723,1780606101000,-169.84659055,0.00013589,2]
[424128724,1780606155000,-150.0,0.00013561,2]
[424128725,1780606208000,-500.0,0.00013575,2]
[424128778,1780606232000,-3556.63,0.00013592,2]
[424128788,1780606232000,-502.47837667,0.00013858,2]
[424128782,1780606232000,-166.66,0.00013699,2]
[424128785,1780606232000,-1000.0,0.00013829,2]
[424128786,1780606232000,-200.0,0.00013829,2]
[424128784,1780606232000,-1852.42,0.00013783,2]
[424128780,1780606232000,-2000.0,0.00013612,2]
[424128783,1780606232000,-273.1,0.00013701,2]
[424128781,1780606232000,-4458.28,0.00013652,2]
[424128775,1780606232000,-170.95116663,0.00013589,2]
[424128777,1780606232000,-4535.87,0.0001359,2]
[424128776,1780606232000,-250.0,0.00013589,2]
[424128773,1780606232000,-500.0,0.00013584,2]
[424128774,1780606232000,-1200.0,0.00013587,2]
[424128772,1780606232000,-198.48085873,0.00013488,2]
[424128771,1780606232000,-872.49008959,0.000134,2]
[424128770,1780606232000,-304.92465711,0.000134,2]
[424128769,1780606232000,-1996.0,0.000134,2]
[424128787,1780606232000,-347.26686177,0.00013858,2]